[Event "Titled Tuesday Blitz June 20 Late 2023"]
[White "Martins, Bruno Andre Leite"]
[Black "Mazurkiewicz, Michal"]
[WhiteFideId "1942255"]
[BlackFideId "1124943"]
[WhiteElo "2241"]
[BlackElo "2063"]
[Result "0-1"]
[Round "10"]
[TimeControl "180+2"]
[Date "2023.06.20"]
[WhiteClock "0:00:23"]
[BlackClock "0:00:12"]
[Board "55"]

1. d4 {[%clk 0:02:58]}  Nf6 {[%clk 0:02:59]} 2. c4 {[%clk 0:02:58]}  e5 {[%clk 0:03:00]} 3. dxe5 {[%clk 0:02:57]}  Ng4 {[%clk 0:02:59]} 4. e6 {[%clk 0:02:57]}  dxe6 {[%clk 0:02:55]} 5. Qxd8+ {[%clk 0:02:58]}  Kxd8 {[%clk 0:02:56]} 6. Bg5+ {[%clk 0:02:56]}  f6 {[%clk 0:02:53]} 7. Bd2 {[%clk 0:02:55]}  Bc5 {[%clk 0:02:49]} 8. e3 {[%clk 0:02:55]}  Nc6 {[%clk 0:02:45]} 9. Nf3 {[%clk 0:02:54]}  e5 {[%clk 0:02:31]} 10. a3 {[%clk 0:02:46]}  a5 {[%clk 0:02:31]} 11. Nc3 {[%clk 0:02:45]}  Be6 {[%clk 0:02:24]} 12. Be2 {[%clk 0:02:45]}  a4 {[%clk 0:01:32]} 13. O-O-O {[%clk 0:02:36]}  Kc8 {[%clk 0:01:32]} 14. Ne4 {[%clk 0:02:32]}  Be7 {[%clk 0:01:30]} 15. h3 {[%clk 0:02:33]}  Nh6 {[%clk 0:01:30]} 16. Nc3 {[%clk 0:02:21]}  Nf7 {[%clk 0:01:28]} 17. Nd5 {[%clk 0:02:21]}  Bc5 {[%clk 0:01:27]} 18. Bc3 {[%clk 0:02:16]}  Nd6 {[%clk 0:01:24]} 19. g4 {[%clk 0:02:00]}  Na5 {[%clk 0:01:05]} 20. Nd2 {[%clk 0:01:48]}  Rd8 {[%clk 0:00:58]} 21. Kc2 {[%clk 0:01:11]}  c6 {[%clk 0:00:56]} 22. Bxa5 {[%clk 0:01:06]}  Rxa5 {[%clk 0:00:55]} 23. Nc3 {[%clk 0:01:02]}  Ra8 {[%clk 0:00:26]} 24. Bd3 {[%clk 0:00:53]}  g6 {[%clk 0:00:24]} 25. Nde4 {[%clk 0:00:53]}  Nxe4 {[%clk 0:00:24]} 26. Nxe4 {[%clk 0:00:54]}  Be7 {[%clk 0:00:23]} 27. Ng3 {[%clk 0:00:37]}  Kc7 {[%clk 0:00:22]} 28. f3 {[%clk 0:00:32]}  Bc5 {[%clk 0:00:20]} 29. Rhe1 {[%clk 0:00:29]}  Rd7 {[%clk 0:00:20]} 30. Ne4 {[%clk 0:00:29]}  Be7 {[%clk 0:00:20]} 31. Be2 {[%clk 0:00:28]}  Rad8 {[%clk 0:00:20]} 32. Rxd7+ {[%clk 0:00:27]}  Rxd7 {[%clk 0:00:20]} 33. Nc3 {[%clk 0:00:27]}  f5 {[%clk 0:00:14]} 34. Nxa4 {[%clk 0:00:26]}  Bh4 {[%clk 0:00:07]} 35. Rd1 {[%clk 0:00:25]}  Rxd1 {[%clk 0:00:05]} 36. Kxd1 {[%clk 0:00:26]}  b6 {[%clk 0:00:04]} 37. Nc3 {[%clk 0:00:25]}  Bf2 {[%clk 0:00:03]} 38. Kd2 {[%clk 0:00:25]}  h5 {[%clk 0:00:03]} 39. Nd1 {[%clk 0:00:24]}  Bg1 {[%clk 0:00:04]} 40. gxh5 {[%clk 0:00:19]}  gxh5 {[%clk 0:00:05]} 41. Ke1 {[%clk 0:00:19]}  f4 {[%clk 0:00:04]} 42. exf4 {[%clk 0:00:15]}  exf4 {[%clk 0:00:04]} 43. Bf1 {[%clk 0:00:12]}  Bd4 {[%clk 0:00:04]} 44. Kd2 {[%clk 0:00:11]}  Kd6 {[%clk 0:00:04]} 45. Kd3 {[%clk 0:00:12]}  Bf6 {[%clk 0:00:03]} 46. Nc3 {[%clk 0:00:12]}  Bxc3 {[%clk 0:00:03]} 47. Kxc3 {[%clk 0:00:12]}  h4 {[%clk 0:00:03]} 48. b4 {[%clk 0:00:12]}  c5 {[%clk 0:00:03]} 49. Kd3 {[%clk 0:00:09]}  Bf5+ {[%clk 0:00:03]} 50. Kc3 {[%clk 0:00:09]}  Be6 {[%clk 0:00:03]} 51. Kb3 {[%clk 0:00:09]}  Bd7 {[%clk 0:00:02]} 52. b5 {[%clk 0:00:07]}  Ke5 {[%clk 0:00:02]} 53. Kc3 {[%clk 0:00:06]}  Bc8 {[%clk 0:00:02]} 54. a4 {[%clk 0:00:07]}  Bb7 {[%clk 0:00:02]} 55. Be2 {[%clk 0:00:05]}  Bc8 {[%clk 0:00:02]} 56. Bf1 {[%clk 0:00:06]}  Bb7 {[%clk 0:00:03]} 57. Bg2 {[%clk 0:00:07]}  Bc8 {[%clk 0:00:03]} 58. Kd3 {[%clk 0:00:07]}  Bf5+ {[%clk 0:00:03]} 59. Kc3 {[%clk 0:00:08]}  Bc8 {[%clk 0:00:04]} 60. a5 {[%clk 0:00:07]}  bxa5 {[%clk 0:00:04]} 61. Kb3 {[%clk 0:00:08]}  Kd4 {[%clk 0:00:04]} 62. Ka4 {[%clk 0:00:09]}  Kxc4 {[%clk 0:00:04]} 63. Kxa5 {[%clk 0:00:09]}  Kd4 {[%clk 0:00:04]} 64. Kb6 {[%clk 0:00:09]}  c4 {[%clk 0:00:04]} 65. Kc7 {[%clk 0:00:09]}  c3 {[%clk 0:00:04]} 66. Kxc8 {[%clk 0:00:09]}  c2 {[%clk 0:00:04]} 67. b6 {[%clk 0:00:10]}  c1=Q+ {[%clk 0:00:04]} 68. Kd7 {[%clk 0:00:10]}  Qb2 {[%clk 0:00:04]} 69. Kc7 {[%clk 0:00:10]}  Ke3 {[%clk 0:00:04]} 70. b7 {[%clk 0:00:10]}  Kf2 {[%clk 0:00:04]} 71. Bh1 {[%clk 0:00:09]}  Kg1 {[%clk 0:00:05]} 72. b8=Q {[%clk 0:00:09]}  Qxb8+ {[%clk 0:00:04]} 73. Kxb8 {[%clk 0:00:10]}  Kxh1 {[%clk 0:00:05]} 74. Kc7 {[%clk 0:00:11]}  Kg2 {[%clk 0:00:05]} 75. Kd6 {[%clk 0:00:12]}  Kxf3 {[%clk 0:00:06]} 76. Ke5 {[%clk 0:00:13]}  Kg3 {[%clk 0:00:06]} 77. Ke4 {[%clk 0:00:13]}  f3 {[%clk 0:00:07]} 78. Ke3 {[%clk 0:00:14]}  f2 {[%clk 0:00:07]} 79. Ke2 {[%clk 0:00:15]}  Kg2 {[%clk 0:00:08]} 80. Ke3 {[%clk 0:00:16]}  f1=Q {[%clk 0:00:08]} 81. Ke4 {[%clk 0:00:17]}  Qf3+ {[%clk 0:00:08]} 82. Kd4 {[%clk 0:00:17]}  Qe2 {[%clk 0:00:08]} 83. Kc5 {[%clk 0:00:18]}  Qd3 {[%clk 0:00:09]} 84. Kb6 {[%clk 0:00:19]}  Qc4 {[%clk 0:00:09]} 85. Ka7 {[%clk 0:00:20]}  Qb5 {[%clk 0:00:10]} 86. Ka8 {[%clk 0:00:20]}  Kf3 {[%clk 0:00:10]} 87. Ka7 {[%clk 0:00:21]}  Ke4 {[%clk 0:00:11]} 88. Ka8 {[%clk 0:00:22]}  Kd5 {[%clk 0:00:11]} 89. Ka7 {[%clk 0:00:23]}  Kc6 {[%clk 0:00:12]} 90. Ka8 {[%clk 0:00:23]}  Qb7# {[%clk 0:00:12]} 0-1


[Site "https://www.chess.com"]

[Event "Titled Tuesday Blitz June 20 Late 2023"]
[White "Bernabeu Lopez, Carlos Javier"]
[Black "Stachanczyk, Jacek"]
[WhiteFideId "2235366"]
[BlackFideId "1116657"]
[WhiteElo "2344"]
[BlackElo "2084"]
[Result "1-0"]
[Round "10"]
[TimeControl "180+2"]
[Date "2023.06.20"]
[WhiteClock "0:01:34"]
[BlackClock "0:00:46"]
[Board "56"]

1. Nf3 {[%clk 0:03:00]}  c5 {[%clk 0:02:57]} 2. e4 {[%clk 0:02:58]}  Nc6 {[%clk 0:02:56]} 3. Bb5 {[%clk 0:02:58]}  g6 {[%clk 0:02:53]} 4. O-O {[%clk 0:02:58]}  Bg7 {[%clk 0:02:53]} 5. Bxc6 {[%clk 0:02:59]}  bxc6 {[%clk 0:02:52]} 6. Re1 {[%clk 0:02:58]}  Nh6 {[%clk 0:02:47]} 7. Nc3 {[%clk 0:02:58]}  f6 {[%clk 0:02:47]} 8. d4 {[%clk 0:02:55]}  cxd4 {[%clk 0:02:45]} 9. Qxd4 {[%clk 0:02:56]}  Nf7 {[%clk 0:02:46]} 10. Qd2 {[%clk 0:02:42]}  O-O {[%clk 0:02:43]} 11. b3 {[%clk 0:02:42]}  d6 {[%clk 0:02:39]} 12. Bb2 {[%clk 0:02:42]}  Ne5 {[%clk 0:02:37]} 13. Nd4 {[%clk 0:02:37]}  c5 {[%clk 0:02:30]} 14. Nde2 {[%clk 0:02:37]}  h5 {[%clk 0:02:25]} 15. Nd5 {[%clk 0:02:33]}  Kh7 {[%clk 0:02:15]} 16. Nef4 {[%clk 0:02:16]}  a5 {[%clk 0:01:50]} 17. Nd3 {[%clk 0:02:14]}  Bh6 {[%clk 0:01:47]} 18. Qe2 {[%clk 0:02:09]}  a4 {[%clk 0:01:45]} 19. Nxe5 {[%clk 0:02:03]}  fxe5 {[%clk 0:01:45]} 20. Bc1 {[%clk 0:02:04]}  Be6 {[%clk 0:01:27]} 21. Bxh6 {[%clk 0:02:02]}  Kxh6 {[%clk 0:01:27]} 22. Qd2+ {[%clk 0:02:01]}  Kh7 {[%clk 0:01:27]} 23. Ne3 {[%clk 0:02:01]}  Qa5 {[%clk 0:01:24]} 24. Qxa5 {[%clk 0:01:57]}  Rxa5 {[%clk 0:01:23]} 25. Rac1 {[%clk 0:01:58]}  Kg7 {[%clk 0:01:16]} 26. h4 {[%clk 0:01:57]}  Rf4 {[%clk 0:01:14]} 27. f3 {[%clk 0:01:55]}  Rf8 {[%clk 0:01:11]} 28. Kf2 {[%clk 0:01:55]}  axb3 {[%clk 0:01:10]} 29. axb3 {[%clk 0:01:56]}  Ra2 {[%clk 0:01:10]} 30. Ra1 {[%clk 0:01:54]}  Rfa8 {[%clk 0:01:08]} 31. Rxa2 {[%clk 0:01:54]}  Rxa2 {[%clk 0:01:09]} 32. Rb1 {[%clk 0:01:48]}  Kf6 {[%clk 0:01:05]} 33. Ke2 {[%clk 0:01:36]}  Kf7 {[%clk 0:01:00]} 34. Kd3 {[%clk 0:01:36]}  Bd7 {[%clk 0:01:00]} 35. Nd1 {[%clk 0:01:34]}  Bb5+ {[%clk 0:00:59]} 36. Kd2 {[%clk 0:01:35]}  Bf1 {[%clk 0:00:46]} 37. Nc3 {[%clk 0:01:34]} 1-0


[Site "https://www.chess.com"]

[Event "Titled Tuesday Blitz June 20 Late 2023"]
[White "Taranenko, Evgueniy"]
[Black "Gubajdullin, Alexei"]
[WhiteFideId "14122138"]
[BlackFideId "4141202"]
[WhiteElo "2101"]
[BlackElo "2279"]
[Result "0-1"]
[Round "10"]
[TimeControl "180+2"]
[Date "2023.06.20"]
[WhiteClock "0:00:21"]
[BlackClock "0:00:07"]
[Board "58"]

1. e4 {[%clk 0:03:00]}  g6 {[%clk 0:02:59]} 2. d4 {[%clk 0:03:00]}  d6 {[%clk 0:02:59]} 3. Nc3 {[%clk 0:03:00]}  c6 {[%clk 0:02:59]} 4. f4 {[%clk 0:03:00]}  Qb6 {[%clk 0:02:59]} 5. Nf3 {[%clk 0:03:00]}  Bg4 {[%clk 0:02:59]} 6. Be2 {[%clk 0:02:57]}  Bg7 {[%clk 0:02:58]} 7. e5 {[%clk 0:02:57]}  Nh6 {[%clk 0:02:57]} 8. Ne4 {[%clk 0:02:52]}  Nf5 {[%clk 0:02:56]} 9. c3 {[%clk 0:02:52]}  d5 {[%clk 0:02:55]} 10. Nc5 {[%clk 0:02:49]}  e6 {[%clk 0:02:53]} 11. Ng5 {[%clk 0:02:40]}  Bxe2 {[%clk 0:02:52]} 12. Qxe2 {[%clk 0:02:41]}  h6 {[%clk 0:02:50]} 13. Ngxe6 {[%clk 0:02:38]}  fxe6 {[%clk 0:02:50]} 14. Nxe6 {[%clk 0:02:38]}  Kf7 {[%clk 0:02:42]} 15. Nc5 {[%clk 0:02:37]}  Na6 {[%clk 0:02:35]} 16. g4 {[%clk 0:02:27]}  Ne7 {[%clk 0:02:29]} 17. f5 {[%clk 0:02:24]}  Nxc5 {[%clk 0:02:16]} 18. dxc5 {[%clk 0:02:21]}  Qxc5 {[%clk 0:02:16]} 19. f6 {[%clk 0:02:19]}  Bxf6 {[%clk 0:02:16]} 20. exf6 {[%clk 0:02:18]}  Nc8 {[%clk 0:02:15]} 21. Be3 {[%clk 0:02:10]}  Qa5 {[%clk 0:01:54]} 22. O-O {[%clk 0:02:06]}  Re8 {[%clk 0:01:53]} 23. Qf3 {[%clk 0:01:47]}  Nd6 {[%clk 0:01:52]} 24. Qh3 {[%clk 0:01:37]}  Rh8 {[%clk 0:01:21]} 25. g5 {[%clk 0:01:08]}  Qc7 {[%clk 0:01:14]} 26. gxh6 {[%clk 0:01:01]}  Qc8 {[%clk 0:01:05]} 27. Qxc8 {[%clk 0:00:50]}  Raxc8 {[%clk 0:01:05]} 28. Bxa7 {[%clk 0:00:49]}  Rxh6 {[%clk 0:01:03]} 29. Rae1 {[%clk 0:00:49]}  Nf5 {[%clk 0:01:00]} 30. Bd4 {[%clk 0:00:44]}  Rh4 {[%clk 0:00:49]} 31. Re7+ {[%clk 0:00:26]}  Nxe7 {[%clk 0:00:10]} 32. fxe7+ {[%clk 0:00:27]}  Kg8 {[%clk 0:00:10]} 33. Bc5 {[%clk 0:00:20]}  Rh8 {[%clk 0:00:09]} 34. Rf8+ {[%clk 0:00:19]}  Kh7 {[%clk 0:00:09]} 35. Rxh8+ {[%clk 0:00:19]}  Kxh8 {[%clk 0:00:08]} 36. Bb6 {[%clk 0:00:19]}  Re8 {[%clk 0:00:07]} 37. Bd8 {[%clk 0:00:20]}  Kg7 {[%clk 0:00:07]} 38. Kf2 {[%clk 0:00:21]}  Kf7 {[%clk 0:00:08]} 39. Ke3 {[%clk 0:00:21]}  Rh8 {[%clk 0:00:08]} 40. Kd4 {[%clk 0:00:21]}  Rxh2 {[%clk 0:00:07]} 41. Kc5 {[%clk 0:00:22]}  Rxb2 {[%clk 0:00:06]} 42. Kd6 {[%clk 0:00:22]}  Ke8 {[%clk 0:00:06]} 43. a4 {[%clk 0:00:23]}  g5 {[%clk 0:00:05]} 44. Ke5 {[%clk 0:00:21]}  g4 {[%clk 0:00:04]} 45. Kf4 {[%clk 0:00:21]}  Rc2 {[%clk 0:00:05]} 46. Kxg4 {[%clk 0:00:20]}  Rxc3 {[%clk 0:00:05]} 47. Kf5 {[%clk 0:00:20]}  Rc4 {[%clk 0:00:05]} 48. a5 {[%clk 0:00:21]}  Rb4 {[%clk 0:00:03]} 49. Ke5 {[%clk 0:00:21]}  d4 {[%clk 0:00:02]} 50. Ke4 {[%clk 0:00:21]}  Kd7 {[%clk 0:00:03]} 51. Bb6 {[%clk 0:00:20]}  Ra4 {[%clk 0:00:02]} 52. Kd3 {[%clk 0:00:19]}  Kxe7 {[%clk 0:00:02]} 53. Bxd4 {[%clk 0:00:20]}  Kd6 {[%clk 0:00:02]} 54. Bb6 {[%clk 0:00:20]}  Kd5 {[%clk 0:00:03]} 55. Kc3 {[%clk 0:00:21]}  c5 {[%clk 0:00:03]} 56. Kb3 {[%clk 0:00:21]}  Rd4 {[%clk 0:00:04]} 57. Kc3 {[%clk 0:00:22]}  Re4 {[%clk 0:00:04]} 58. Kb3 {[%clk 0:00:22]}  Re3+ {[%clk 0:00:04]} 59. Ka4 {[%clk 0:00:22]}  Rd3 {[%clk 0:00:05]} 60. Kb5 {[%clk 0:00:22]}  c4 {[%clk 0:00:05]} 61. Kb4 {[%clk 0:00:22]}  Rb3+ {[%clk 0:00:04]} 62. Ka4 {[%clk 0:00:23]}  Rb1 {[%clk 0:00:04]} 63. Ka3 {[%clk 0:00:23]}  c3 {[%clk 0:00:05]} 64. Ka2 {[%clk 0:00:23]}  c2 {[%clk 0:00:06]} 65. a6 {[%clk 0:00:22]}  c1=Q {[%clk 0:00:07]} 66. Bd4 {[%clk 0:00:22]}  Qc2+ {[%clk 0:00:07]} 67. Ka3 {[%clk 0:00:21]}  Qb3# {[%clk 0:00:07]} 0-1


[Site "https://www.chess.com"]

[Event "Titled Tuesday Blitz June 20 Late 2023"]
[White "Buscar, Michael"]
[Black "Xu, Yi"]
[WhiteFideId "2603616"]
[BlackFideId "8605564"]
[WhiteElo "2010"]
[BlackElo "2460"]
[Result "1-0"]
[Round "10"]
[TimeControl "180+2"]
[Date "2023.06.20"]
[WhiteClock "0:00:20"]
[BlackClock "0:00:00"]
[Board "59"]

1. d4 {[%clk 0:02:52]}  Nf6 {[%clk 0:02:59]} 2. c4 {[%clk 0:02:51]}  e6 {[%clk 0:02:59]} 3. Nc3 {[%clk 0:02:51]}  Bb4 {[%clk 0:02:59]} 4. e3 {[%clk 0:02:51]}  d5 {[%clk 0:02:59]} 5. Bd3 {[%clk 0:02:51]}  O-O {[%clk 0:02:56]} 6. Nf3 {[%clk 0:02:51]}  c5 {[%clk 0:02:55]} 7. O-O {[%clk 0:02:50]}  Nc6 {[%clk 0:02:54]} 8. a3 {[%clk 0:02:49]}  Bxc3 {[%clk 0:02:17]} 9. bxc3 {[%clk 0:02:50]}  b6 {[%clk 0:02:16]} 10. cxd5 {[%clk 0:02:48]}  exd5 {[%clk 0:02:15]} 11. Bb2 {[%clk 0:02:46]}  Bg4 {[%clk 0:02:12]} 12. Qa4 {[%clk 0:02:34]}  Qd7 {[%clk 0:02:04]} 13. Nd2 {[%clk 0:02:27]}  Rac8 {[%clk 0:01:49]} 14. Bb5 {[%clk 0:02:25]}  Bf5 {[%clk 0:01:20]} 15. c4 {[%clk 0:02:19]}  cxd4 {[%clk 0:01:16]} 16. Bxd4 {[%clk 0:02:18]}  Ne4 {[%clk 0:01:11]} 17. Nxe4 {[%clk 0:02:12]}  dxe4 {[%clk 0:01:03]} 18. Rfd1 {[%clk 0:02:03]}  Qb7 {[%clk 0:00:59]} 19. Ba6 {[%clk 0:01:55]}  Qe7 {[%clk 0:00:52]} 20. Bxc8 {[%clk 0:01:54]}  Rxc8 {[%clk 0:00:53]} 21. Rac1 {[%clk 0:01:44]}  Qg5 {[%clk 0:00:45]} 22. Kh1 {[%clk 0:01:32]}  Bg4 {[%clk 0:00:39]} 23. Rd2 {[%clk 0:01:26]}  h5 {[%clk 0:00:31]} 24. Qb5 {[%clk 0:01:21]}  Qg6 {[%clk 0:00:24]} 25. Bb2 {[%clk 0:01:13]}  Na5 {[%clk 0:00:21]} 26. c5 {[%clk 0:00:52]}  h4 {[%clk 0:00:12]} 27. h3 {[%clk 0:00:51]}  Be6 {[%clk 0:00:05]} 28. cxb6 {[%clk 0:00:46]}  Rxc1+ {[%clk 0:00:03]} 29. Bxc1 {[%clk 0:00:46]}  axb6 {[%clk 0:00:02]} 30. Qxb6 {[%clk 0:00:38]}  Nc4 {[%clk 0:00:02]} 31. Rd8+ {[%clk 0:00:36]}  Kh7 {[%clk 0:00:02]} 32. Qb8 {[%clk 0:00:33]}  Qf5 {[%clk 0:00:02]} 33. Qf4 {[%clk 0:00:26]}  Qh5 {[%clk 0:00:02]} 34. Qxe4+ {[%clk 0:00:24]}  g6 {[%clk 0:00:00]} 35. Qd4 {[%clk 0:00:20]} 1-0


[Site "https://www.chess.com"]

[Event "Titled Tuesday Blitz June 20 Late 2023"]
[White "Sreyas Payyappat"]
[Black "Jovic, Stanoje"]
[WhiteFideId "46674969"]
[BlackFideId "905020"]
[WhiteElo "2043"]
[BlackElo "2236"]
[Result "1-0"]
[Round "10"]
[TimeControl "180+2"]
[Date "2023.06.20"]
[WhiteClock "0:00:39"]
[BlackClock "0:00:00"]
[Board "61"]

1. e4 {[%clk 0:03:00]}  c6 {[%clk 0:02:59]} 2. d4 {[%clk 0:03:00]}  d5 {[%clk 0:02:59]} 3. Nc3 {[%clk 0:03:01]}  dxe4 {[%clk 0:02:59]} 4. Nxe4 {[%clk 0:03:02]}  Nf6 {[%clk 0:03:00]} 5. Nxf6+ {[%clk 0:03:02]}  exf6 {[%clk 0:03:01]} 6. Bc4 {[%clk 0:03:03]}  Bd6 {[%clk 0:03:01]} 7. Qe2+ {[%clk 0:03:03]}  Qe7 {[%clk 0:03:01]} 8. Qxe7+ {[%clk 0:03:04]}  Kxe7 {[%clk 0:03:02]} 9. Ne2 {[%clk 0:03:04]}  Be6 {[%clk 0:03:03]} 10. Bd3 {[%clk 0:03:04]}  b5 {[%clk 0:03:01]} 11. Bf4 {[%clk 0:03:04]}  Nd7 {[%clk 0:03:00]} 12. O-O-O {[%clk 0:03:03]}  a5 {[%clk 0:03:00]} 13. Rhe1 {[%clk 0:03:01]}  a4 {[%clk 0:02:59]} 14. Kb1 {[%clk 0:03:01]}  Nb6 {[%clk 0:02:58]} 15. c3 {[%clk 0:02:55]}  Nd5 {[%clk 0:02:57]} 16. Bc1 {[%clk 0:02:53]}  g5 {[%clk 0:02:53]} 17. Ng3 {[%clk 0:02:52]}  h5 {[%clk 0:02:47]} 18. Ne4 {[%clk 0:02:47]}  g4 {[%clk 0:02:38]} 19. g3 {[%clk 0:02:37]}  h4 {[%clk 0:02:35]} 20. Re2 {[%clk 0:02:19]}  a3 {[%clk 0:02:34]} 21. Rde1 {[%clk 0:02:11]}  axb2 {[%clk 0:02:23]} 22. Bxb2 {[%clk 0:02:12]}  f5 {[%clk 0:02:23]} 23. Ng5 {[%clk 0:02:10]}  hxg3 {[%clk 0:02:06]} 24. hxg3 {[%clk 0:02:07]}  Kd7 {[%clk 0:01:56]} 25. Nxe6 {[%clk 0:01:56]}  fxe6 {[%clk 0:01:57]} 26. Rxe6 {[%clk 0:01:56]}  Raf8 {[%clk 0:01:57]} 27. c4 {[%clk 0:01:48]}  bxc4 {[%clk 0:01:56]} 28. Bxc4 {[%clk 0:01:49]}  Rf7 {[%clk 0:01:52]} 29. Rg6 {[%clk 0:01:36]}  Rh2 {[%clk 0:01:49]} 30. Ree6 {[%clk 0:01:32]}  Rh1+ {[%clk 0:01:38]} 31. Kc2 {[%clk 0:01:30]}  Nb4+ {[%clk 0:01:35]} 32. Kb3 {[%clk 0:01:30]}  Bf8 {[%clk 0:01:24]} 33. a3 {[%clk 0:01:27]}  Nd5 {[%clk 0:00:47]} 34. Rxc6 {[%clk 0:01:26]}  Ne7 {[%clk 0:00:34]} 35. Rgd6+ {[%clk 0:01:02]}  Ke8 {[%clk 0:00:31]} 36. Bxf7+ {[%clk 0:01:03]}  Kxf7 {[%clk 0:00:31]} 37. Rf6+ {[%clk 0:01:03]}  Ke8 {[%clk 0:00:27]} 38. Rce6 {[%clk 0:01:02]}  Rf1 {[%clk 0:00:14]} 39. d5 {[%clk 0:00:58]}  Rxf2 {[%clk 0:00:11]} 40. d6 {[%clk 0:00:57]}  Kd7 {[%clk 0:00:11]} 41. dxe7 {[%clk 0:00:47]}  Bxe7 {[%clk 0:00:10]} 42. Rg6 {[%clk 0:00:46]}  Rf3+ {[%clk 0:00:09]} 43. Bc3 {[%clk 0:00:42]}  Rxg3 {[%clk 0:00:09]} 44. a4 {[%clk 0:00:42]}  f4 {[%clk 0:00:06]} 45. Re4 {[%clk 0:00:39]}  f3 {[%clk 0:00:00]} 46. Rgxg4 {[%clk 0:00:39]} 1-0


[Site "https://www.chess.com"]

[Event "Titled Tuesday Blitz June 20 Late 2023"]
[White "ElDivis"]
[Black "Jiang, Andrew"]
[BlackFideId "30953510"]
[WhiteElo "2535"]
[BlackElo "1883"]
[Result "1-0"]
[Round "10"]
[TimeControl "180+2"]
[Date "2023.06.20"]
[WhiteClock "0:00:04"]
[BlackClock "0:00:03"]
[Board "62"]

1. e4 {[%clk 0:03:00]}  e5 {[%clk 0:02:56]} 2. Nf3 {[%clk 0:03:00]}  Nc6 {[%clk 0:02:53]} 3. Bc4 {[%clk 0:03:00]}  Bc5 {[%clk 0:02:53]} 4. Nc3 {[%clk 0:02:59]}  Nf6 {[%clk 0:02:51]} 5. Nd5 {[%clk 0:02:59]}  Nxe4 {[%clk 0:02:45]} 6. Qe2 {[%clk 0:02:52]}  Nd6 {[%clk 0:02:43]} 7. Nxe5 {[%clk 0:02:46]}  O-O {[%clk 0:02:41]} 8. Nxc6 {[%clk 0:02:36]}  dxc6 {[%clk 0:02:36]} 9. Ne3 {[%clk 0:02:32]}  Qg5 {[%clk 0:02:35]} 10. O-O {[%clk 0:02:28]}  Bh3 {[%clk 0:02:32]} 11. f4 {[%clk 0:02:18]}  Qg6 {[%clk 0:02:15]} 12. Bd3 {[%clk 0:02:15]}  f5 {[%clk 0:02:08]} 13. Kh1 {[%clk 0:02:07]}  Bg4 {[%clk 0:02:08]} 14. Nxg4 {[%clk 0:02:07]}  Qxg4 {[%clk 0:02:08]} 15. Qxg4 {[%clk 0:02:06]}  fxg4 {[%clk 0:02:08]} 16. c3 {[%clk 0:01:58]}  Rae8 {[%clk 0:01:49]} 17. b4 {[%clk 0:01:57]}  Bb6 {[%clk 0:01:47]} 18. a4 {[%clk 0:01:57]}  a6 {[%clk 0:01:45]} 19. a5 {[%clk 0:01:57]}  Ba7 {[%clk 0:01:45]} 20. Bc2 {[%clk 0:01:42]}  Re2 {[%clk 0:01:41]} 21. Bd1 {[%clk 0:01:39]}  Ree8 {[%clk 0:01:28]} 22. d4 {[%clk 0:01:27]}  h5 {[%clk 0:01:26]} 23. Bd2 {[%clk 0:01:15]}  Ne4 {[%clk 0:01:26]} 24. Be1 {[%clk 0:01:14]}  g5 {[%clk 0:01:20]} 25. f5 {[%clk 0:01:08]}  Nd6 {[%clk 0:01:16]} 26. Bb3+ {[%clk 0:00:58]}  Kg7 {[%clk 0:01:15]} 27. Bg3 {[%clk 0:00:58]}  Rxf5 {[%clk 0:01:11]} 28. Be5+ {[%clk 0:00:57]}  Kh6 {[%clk 0:01:00]} 29. Bc2 {[%clk 0:00:55]}  Rfxe5 {[%clk 0:00:27]} 30. Rf6+ {[%clk 0:00:41]}  Kg7 {[%clk 0:00:23]} 31. Rg6+ {[%clk 0:00:40]}  Kf7 {[%clk 0:00:21]} 32. dxe5 {[%clk 0:00:36]}  Rxe5 {[%clk 0:00:20]} 33. Rf1+ {[%clk 0:00:34]}  Ke8 {[%clk 0:00:14]} 34. Rg7 {[%clk 0:00:32]}  Re7 {[%clk 0:00:13]} 35. Rxg5 {[%clk 0:00:26]}  Nb5 {[%clk 0:00:12]} 36. Bg6+ {[%clk 0:00:21]}  Kd7 {[%clk 0:00:11]} 37. Bf5+ {[%clk 0:00:21]}  Ke8 {[%clk 0:00:10]} 38. Rg8+ {[%clk 0:00:18]}  Kf7 {[%clk 0:00:10]} 39. Bh7+ {[%clk 0:00:17]}  Ke6 {[%clk 0:00:09]} 40. Re1+ {[%clk 0:00:16]}  Kf6 {[%clk 0:00:05]} 41. Rg6+ {[%clk 0:00:11]}  Kf7 {[%clk 0:00:06]} 42. Rxe7+ {[%clk 0:00:07]}  Kxe7 {[%clk 0:00:07]} 43. c4 {[%clk 0:00:07]}  Nd6 {[%clk 0:00:07]} 44. Rg7+ {[%clk 0:00:07]}  Kd8 {[%clk 0:00:05]} 45. Bd3 {[%clk 0:00:05]}  c5 {[%clk 0:00:04]} 46. bxc5 {[%clk 0:00:04]}  Bxc5 {[%clk 0:00:04]} 47. Rh7 {[%clk 0:00:04]}  Bb4 {[%clk 0:00:04]} 48. Rxh5 {[%clk 0:00:04]}  Bxa5 {[%clk 0:00:03]} 49. Rxa5 {[%clk 0:00:04]} 1-0


[Site "https://www.chess.com"]

[Event "Titled Tuesday Blitz June 20 Late 2023"]
[White "Omariev, Maksim"]
[Black "Novikov, Evgenij"]
[WhiteFideId "4193423"]
[BlackFideId "4125380"]
[WhiteElo "2426"]
[BlackElo "2242"]
[Result "0-1"]
[Round "10"]
[TimeControl "180+2"]
[Date "2023.06.20"]
[WhiteClock "0:00:00"]
[BlackClock "0:00:55"]
[Board "64"]

1. g4 {[%clk 0:03:00]}  g5 {[%clk 0:02:58]} 2. Bg2 {[%clk 0:02:59]}  Bg7 {[%clk 0:02:58]} 3. d4 {[%clk 0:02:58]}  h6 {[%clk 0:02:55]} 4. c4 {[%clk 0:02:56]}  c6 {[%clk 0:02:53]} 5. Nc3 {[%clk 0:02:53]}  d6 {[%clk 0:02:50]} 6. h3 {[%clk 0:02:50]}  Nd7 {[%clk 0:02:46]} 7. e4 {[%clk 0:02:44]}  Nf8 {[%clk 0:02:46]} 8. Nge2 {[%clk 0:02:40]}  Ng6 {[%clk 0:02:45]} 9. Be3 {[%clk 0:02:30]}  Qa5 {[%clk 0:02:41]} 10. Qd2 {[%clk 0:02:27]}  Be6 {[%clk 0:02:30]} 11. d5 {[%clk 0:02:17]}  Bd7 {[%clk 0:02:27]} 12. O-O {[%clk 0:01:38]}  c5 {[%clk 0:02:16]} 13. Rab1 {[%clk 0:01:06]}  h5 {[%clk 0:02:15]} 14. f3 {[%clk 0:01:00]}  Nh4 {[%clk 0:01:59]} 15. Bxg5 {[%clk 0:00:56]}  Nxg2 {[%clk 0:01:59]} 16. Kxg2 {[%clk 0:00:57]}  a6 {[%clk 0:01:36]} 17. a3 {[%clk 0:00:55]}  b5 {[%clk 0:01:34]} 18. b4 {[%clk 0:00:53]}  cxb4 {[%clk 0:01:34]} 19. axb4 {[%clk 0:00:53]}  Qc7 {[%clk 0:01:32]} 20. c5 {[%clk 0:00:40]}  dxc5 {[%clk 0:01:26]} 21. bxc5 {[%clk 0:00:41]}  Qxc5 {[%clk 0:01:26]} 22. Rfc1 {[%clk 0:00:41]}  hxg4 {[%clk 0:01:24]} 23. hxg4 {[%clk 0:00:40]}  Be5 {[%clk 0:01:11]} 24. f4 {[%clk 0:00:18]}  Bxg4 {[%clk 0:01:05]} 25. fxe5 {[%clk 0:00:13]}  Rh2+ {[%clk 0:01:05]} 26. Kg3 {[%clk 0:00:02]}  Qf2+ {[%clk 0:00:54]} 27. Kxg4 {[%clk 0:00:00]}  Rg2+ {[%clk 0:00:55]} 0-1


[Site "https://www.chess.com"]